[Event "St Kilda East and Caulfield Chess Club RAPID Term 3, 2025"]
[Site "st kilda east, Australia"]
[Date "2025.07.21"]
[Round "3.6"]
[White "Beckman, John"]
[Black "Yong, Leonard"]
[Result "0-1"]
[TimeControl "13 minutes per game plus 2 seconds from move 1"]
[WhiteElo "859"]
[BlackElo "368"]

1. e4 {[%clk 00:13:00]} e5 {[%clk 00:13:01]} {[%emt 00:00:02]} 2. Bc4 {[%clk
00:12:58]} {[%emt 00:00:03]} Nf6 {[%clk 00:12:59]} {[%emt 00:00:05]} 3. Nc3
{[%clk 00:12:56]} {[%emt 00:00:04]} Bc5 {[%clk 00:12:52]} {[%emt 00:00:09]} 4.
Nf3 {[%clk 00:12:41]} {[%emt 00:00:17]} d5 {[%clk 00:12:39]} {[%emt 00:00:15]}
5. Nxd5 {[%clk 00:12:08]} {[%emt 00:00:35]} Nxd5 {[%clk 00:12:31]} {[%emt
00:00:11]} 6. Bxd5 {[%clk 00:12:02]} {[%emt 00:00:08]} Be6 {[%clk 00:12:15]}
{[%emt 00:00:17]} 7. Bxe6 {[%clk 00:11:55]} {[%emt 00:00:09]} fxe6 {[%emt
00:00:08]} 8. Nxe5 {[%emt 00:00:24]} Qd4 {[%clk 00:12:04]} {[%emt 00:00:07]} 9.
Nd3 {[%clk 00:11:02]} {[%emt 00:00:33]} Qxe4+ {[%clk 00:12:00]} {[%emt
00:00:06]} 10. Qe2 {[%clk 00:10:55]} {[%emt 00:00:09]} Qxg2 {[%clk 00:11:33]}
{[%emt 00:00:30]} 11. Qxe6+ {[%clk 00:10:23]} {[%emt 00:00:33]} Kd8 {[%clk
00:11:21]} {[%emt 00:00:15]} 12. Rf1 {[%clk 00:09:58]} {[%emt 00:00:26]} Re8
{[%clk 00:11:17]} {[%emt 00:00:07]} 13. Qxe8+ {[%clk 00:09:55]} {[%emt
00:00:05]} Kxe8 {[%clk 00:11:15]} {[%emt 00:00:04]} 14. Nxc5 {[%clk 00:09:51]}
{[%emt 00:00:06]} Qxh2 {[%clk 00:10:48]} {[%emt 00:00:29]} 15. d4 {[%clk
00:09:36]} {[%emt 00:00:18]} Nc6 {[%clk 00:10:46]} {[%emt 00:00:04]} 16. Be3
{[%clk 00:09:29]} {[%emt 00:00:09]} Qd6 {[%clk 00:10:38]} {[%emt 00:00:10]} 17.
O-O-O {[%clk 00:09:26]} {[%emt 00:00:05]} b6 {[%clk 00:10:24]} {[%emt
00:00:16]} 18. Nb3 {[%clk 00:09:09]} {[%emt 00:00:19]} Nb4 {[%clk 00:10:10]}
{[%emt 00:00:16]} 19. Kb1 {[%clk 00:08:57]} {[%emt 00:00:14]} Qd5 {[%clk
00:09:51]} {[%emt 00:00:20]} 20. Rfe1 {[%clk 00:08:28]} {[%emt 00:00:30]} Kd7
{[%clk 00:09:20]} {[%emt 00:00:34]} 21. Bd2 {[%clk 00:08:09]} {[%emt 00:00:19]}
a5 {[%clk 00:08:56]} {[%emt 00:00:28]} 22. Re5 {[%clk 00:07:57]} {[%emt
00:00:13]} Qc4 {[%clk 00:08:35]} {[%emt 00:00:24]} 23. Bc3 {[%clk 00:07:41]}
{[%emt 00:00:18]} Kd6 {[%clk 00:08:16]} {[%emt 00:00:21]} 24. Rde1 {[%clk
00:07:36]} {[%emt 00:00:07]} Kc6 {[%clk 00:07:53]} {[%emt 00:00:26]} 25. Re7
{[%clk 00:07:03]} {[%emt 00:00:34]} a4 {[%clk 00:07:37]} {[%emt 00:00:19]} 26.
Nc1 {[%clk 00:05:37]} {[%emt 00:01:28]} a3 {[%clk 00:07:19]} {[%emt 00:00:21]}
27. Rxg7 {[%clk 00:05:19]} {[%emt 00:00:20]} axb2 {[%clk 00:07:08]} {[%emt
00:00:14]} 28. Bxb2 {[%clk 00:04:54]} {[%emt 00:00:26]} Qxc2+ {[%clk 00:07:03]}
{[%emt 00:00:07]} 29. Ka1 {[%clk 00:04:46]} {[%emt 00:00:09]} Qd2 {[%clk
00:05:52]} {[%emt 00:01:10]} 30. Ree7 {[%clk 00:04:15]} {[%emt 00:00:36]} Qd1
{[%clk 00:05:08]} {[%emt 00:00:46]} 31. Rxc7+ {[%clk 00:04:06]} {[%emt
00:00:12]} Kb5 {[%clk 00:05:07]} {[%emt 00:00:03]} 32. Rg5+ {[%clk 00:03:53]}
{[%emt 00:00:14]} Ka6 {[%clk 00:04:51]} {[%emt 00:00:20]} 33. Rxh7 {[%clk
00:03:21]} {[%emt 00:00:33]} Nd3 {[%clk 00:04:31]} {[%emt 00:00:22]} 34. Rc7
{[%clk 00:03:08]} {[%emt 00:00:14]} Nxb2 {[%clk 00:04:13]} {[%emt 00:00:22]} 35.
Kxb2 {[%clk 00:02:44]} {[%emt 00:00:25]} Qd2+ {[%clk 00:04:11]} {[%emt
00:00:05]} 36. Rc2 {[%clk 00:02:34]} {[%emt 00:00:12]} Qxg5 {[%clk 00:04:08]}
{[%emt 00:00:05]} 37. Nd3 {[%clk 00:02:28]} {[%emt 00:00:07]} Qb5+ {[%emt
00:00:21]} 38. Kc3 {[%clk 00:02:08]} {[%emt 00:00:12]} Qc6+ {[%clk 00:03:41]}
{[%emt 00:00:19]} 39. Kd2 {[%clk 00:02:01]} {[%emt 00:00:09]} Qh6+ {[%clk
00:03:31]} {[%emt 00:00:13]} 40. f4 {[%clk 00:01:57]} {[%emt 00:00:05]} Qh2+
{[%clk 00:03:31]} {[%emt 00:00:03]} 41. Kd1 {[%clk 00:01:20]} {[%emt 00:00:38]}
Qg1+ {[%clk 00:03:20]} {[%emt 00:00:14]} 42. Ke2 {[%clk 00:01:06]} {[%emt
00:01:09]} Re8+ {[%clk 00:03:18]} {[%emt 00:00:03]} 43. Ne5 {[%clk 00:00:58]}
{[%emt 00:00:10]} Qg2+ {[%clk 00:03:17]} {[%emt 00:00:04]} 44. Kd3 {[%clk
00:00:55]} {[%emt 00:00:03]} Qf1+ {[%clk 00:03:10]} {[%emt 00:00:10]} 45. Re2
{[%clk 00:00:51]} {[%emt 00:00:06]} Qd1+ {[%clk 00:03:09]} {[%emt 00:00:03]} 46.
Rd2 {[%clk 00:00:52]} {[%emt 00:00:01]} Qb1+ {[%clk 00:03:02]} {[%emt
00:00:10]} 47. Ke3 {[%clk 00:00:47]} {[%emt 00:00:05]} Rc8 {[%clk 00:02:59]}
{[%emt 00:00:06]} 48. Nd3 {[%clk 00:00:40]} {[%emt 00:00:09]} Re8+ {[%clk
00:02:56]} {[%emt 00:00:05]} 49. Ne5 {[%clk 00:00:40]} {[%emt 00:00:02]} Rc8
{[%clk 00:02:47]} {[%emt 00:00:12]} 50. Nd3 {[%clk 00:00:39]} {[%emt 00:00:02]}
Qg1+ {[%clk 00:02:39]} {[%emt 00:00:10]} 51. Nf2 {[%clk 00:00:35]} {[%emt
00:00:04]} Qe1+ {[%clk 00:02:35]} {[%emt 00:00:08]} 52. Re2 {[%clk 00:00:35]}
{[%emt 00:00:02]} Re8+ {[%clk 00:02:35]} {[%emt 00:00:03]} 53. Ne4 {[%clk
00:00:34]} {[%emt 00:00:02]} Rxe4+ {[%clk 00:02:30]} {[%emt 00:00:07]} 54. Kxe4
{[%clk 00:00:33]} {[%emt 00:00:04]} Qxe2+ {[%clk 00:02:30]} {[%emt 00:00:02]}
55. Kd5 {[%clk 00:00:28]} {[%emt 00:00:07]} Qe7 {[%clk 00:02:28]} {[%emt
00:00:03]} 56. f5 {[%clk 00:00:27]} {[%emt 00:00:03]} Qf6 {[%clk 00:02:28]}
{[%emt 00:00:03]} 57. Ke4 {[%clk 00:00:27]} {[%emt 00:00:02]} Kb5 {[%clk
00:02:27]} {[%emt 00:00:03]} 58. d5 {[%clk 00:00:24]} {[%emt 00:00:05]} Kc5
{[%clk 00:02:26]} {[%emt 00:00:03]} 59. Kf4 {[%clk 00:00:15]} {[%emt 00:00:10]}
Kxd5 {[%clk 00:02:26]} {[%emt 00:00:02]} 60. Kg4 {[%clk 00:00:15]} {[%emt
00:00:02]} Ke5 {[%clk 00:02:26]} {[%emt 00:00:02]} 61. Kh5 {[%clk 00:00:12]}
{[%emt 00:00:03]} Kxf5 {[%clk 00:02:22]} {[%emt 00:00:08]} 62. a4 {[%clk
00:00:11]} {[%emt 00:00:08]} Qh8 {[%clk 00:02:20]} {[%emt 00:00:02]} 63. Kh4
{[%clk 00:00:04]} {[%emt 00:00:03]} 0-1

[Event "St Kilda East and Caulfield Chess Club RAPID Term 3, 2025"]
[Site "st kilda east, Australia"]
[Date "2025.07.21"]
[Round "4.5"]
[White "Kovalenko, Kiy"]
[Black "Yong, Leonard"]
[Result "1-0"]
[TimeControl "13 minutes per game plus 2 seconds from move 1"]
[WhiteElo "839"]
[BlackElo "368"]

1. e4 {[%clk 00:12:59]} {[%emt 00:00:03]} e5 {[%clk 00:13:01]} {[%emt
00:00:02]} 2. Nf3 {[%clk 00:13:00]} Nc6 {[%clk 00:13:00]} {[%emt 00:00:03]} 3.
Bc4 {[%clk 00:13:01]} Nf6 {[%clk 00:12:59]} {[%emt 00:00:03]} 4. d4 {[%emt
00:00:04]} exd4 {[%clk 00:12:53]} {[%emt 00:00:05]} 5. O-O {[%clk 00:13:02]}
{[%emt 00:00:02]} Bc5 {[%clk 00:12:48]} {[%emt 00:00:07]} 6. e5 {[%clk
00:13:01]} {[%emt 00:00:02]} Ne4 {[%clk 00:12:37]} {[%emt 00:00:14]} 7. Re1
{[%clk 00:12:44]} {[%emt 00:00:14]} d5 {[%clk 00:12:38]} 8. exd6 {[%clk
00:12:39]} {[%emt 00:00:13]} Qxd6 {[%clk 00:12:34]} {[%emt 00:00:06]} 9. Rxe4+
{[%clk 00:12:40]} {[%emt 00:00:01]} Ne7 {[%clk 00:12:28]} {[%emt 00:00:08]} 10.
Nc3 {[%clk 00:12:02]} {[%emt 00:00:41]} dxc3 {[%clk 00:12:10]} {[%emt
00:00:20]} 11. Qxd6 {[%clk 00:11:59]} {[%emt 00:00:04]} Bxd6 {[%clk 00:12:09]}
{[%emt 00:00:02]} 12. Bg5 {[%clk 00:12:00]} {[%emt 00:00:02]} cxb2 {[%clk
00:12:06]} {[%emt 00:00:05]} 13. Rb1 {[%clk 00:12:01]} {[%emt 00:00:01]} Bf5
{[%clk 00:12:03]} {[%emt 00:00:05]} 14. Rd4 {[%clk 00:11:56]} {[%emt 00:00:08]}
O-O-O {[%clk 00:12:01]} {[%emt 00:00:04]} 15. Rxb2 {[%clk 00:11:42]} {[%emt
00:00:12]} Rhf8 {[%clk 00:11:08]} {[%emt 00:00:58]} 16. Rxd6 {[%clk 00:11:37]}
{[%emt 00:00:07]} Rxd6 {[%clk 00:10:39]} {[%emt 00:00:31]} 17. Bxe7 {[%clk
00:11:29]} {[%emt 00:00:11]} Rd1+ {[%clk 00:10:33]} {[%emt 00:00:08]} 18. Bf1
{[%clk 00:11:29]} {[%emt 00:00:02]} Re8 {[%clk 00:10:32]} {[%emt 00:00:03]} 19.
Bc5 {[%clk 00:11:17]} {[%emt 00:00:14]} Be4 {[%clk 00:10:19]} {[%emt 00:00:15]}
20. Ng5 {[%clk 00:10:43]} {[%emt 00:00:36]} Bg6 {[%clk 00:09:42]} {[%emt
00:00:40]} 21. Nf3 {[%clk 00:10:21]} {[%emt 00:00:24]} Red8 {[%clk 00:09:05]}
{[%emt 00:00:39]} 22. Nd4 {[%clk 00:09:41]} {[%emt 00:00:42]} Rd5 {[%clk
00:08:48]} {[%emt 00:00:19]} 23. Bxa7 {[%clk 00:08:49]} {[%emt 00:00:55]} b6
{[%clk 00:08:43]} {[%emt 00:00:07]} 24. Bxb6 {[%clk 00:08:26]} {[%emt
00:00:25]} cxb6 {[%clk 00:08:42]} {[%emt 00:00:03]} 25. Rxb6 {[%clk 00:08:26]}
{[%emt 00:00:01]} R5xd4 {[%clk 00:08:39]} {[%emt 00:00:06]} 26. Rc6+ {[%clk
00:08:27]} {[%emt 00:00:01]} Kd8 {[%clk 00:08:38]} {[%emt 00:00:03]} 27. c4
{[%clk 00:08:20]} {[%emt 00:00:09]} Bd3 {[%clk 00:08:33]} {[%emt 00:00:06]} 28.
h3 {[%clk 00:08:16]} {[%emt 00:00:06]} Rxf1+ {[%clk 00:08:31]} {[%emt
00:00:04]} 29. Kh2 {[%clk 00:08:18]} Bxc4 {[%clk 00:08:24]} {[%emt 00:00:10]}
30. a4 {[%clk 00:08:19]} {[%emt 00:00:01]} Bd5 {[%clk 00:08:17]} {[%emt
00:00:09]} 31. Rd6+ {[%clk 00:08:21]} Ke7 {[%clk 00:08:07]} {[%emt 00:00:11]}
32. Ra6 {[%clk 00:08:21]} {[%emt 00:00:02]} Rxf2 {[%clk 00:07:48]} {[%emt
00:00:21]} 33. h4 {[%clk 00:08:18]} {[%emt 00:00:05]} Rxh4+ {[%clk 00:07:45]}
{[%emt 00:00:04]} 34. Kg3 {[%clk 00:08:19]} {[%emt 00:00:02]} Rff4 {[%clk
00:07:42]} {[%emt 00:00:05]} 35. a5 {[%clk 00:08:17]} {[%emt 00:00:05]} Rhg4+
{[%clk 00:07:37]} {[%emt 00:00:08]} 36. Kh3 {[%clk 00:08:11]} {[%emt 00:00:07]}
Bxg2+ {[%clk 00:07:31]} {[%emt 00:00:07]} 37. Kh2 {[%clk 00:08:13]} Rf3 {[%clk
00:07:25]} {[%emt 00:00:09]} 38. Ra7+ {[%clk 00:08:09]} {[%emt 00:00:07]} Kf6
{[%clk 00:07:25]} {[%emt 00:00:02]} 39. a6 {[%clk 00:08:01]} {[%emt 00:00:10]}
Rh3+ {[%clk 00:07:25]} {[%emt 00:00:01]} 40. Kg1 {[%clk 00:08:01]} {[%emt
00:00:02]} Rh1+ {[%clk 00:07:22]} {[%emt 00:00:05]} 41. Kf2 {[%clk 00:08:02]}
{[%emt 00:00:01]} Rf4+ {[%clk 00:07:23]} {[%emt 00:00:02]} 42. Kxg2 {[%clk
00:08:02]} {[%emt 00:00:02]} Rh5 {[%clk 00:07:20]} {[%emt 00:00:05]} 43. Ra8
{[%clk 00:07:55]} {[%emt 00:00:09]} Rg5+ {[%clk 00:07:19]} {[%emt 00:00:03]} 44.
Kh3 {[%clk 00:07:55]} {[%emt 00:00:02]} Rg1 {[%clk 00:06:53]} {[%emt 00:00:29]}
45. Rc8 {[%clk 00:07:35]} {[%emt 00:00:20]} Kg5 {[%clk 00:06:26]} {[%emt
00:00:30]} 46. Kh2 {[%clk 00:07:29]} {[%emt 00:00:09]} Rgg4 {[%clk 00:06:16]}
{[%emt 00:00:12]} 47. a7 {[%clk 00:07:21]} {[%emt 00:00:10]} Rf6 {[%clk
00:06:01]} {[%emt 00:00:18]} 48. Rc5+ {[%clk 00:07:09]} {[%emt 00:00:14]} Kf4
{[%clk 00:05:11]} {[%emt 00:00:52]} 49. Rc4+ {[%clk 00:07:09]} {[%emt
00:00:02]} Kf3 {[%clk 00:05:09]} {[%emt 00:00:04]} 50. Rxg4 {[%clk 00:07:09]}
{[%emt 00:00:03]} Rh6+ {[%clk 00:05:06]} {[%emt 00:00:04]} 51. Kg1 {[%clk
00:07:07]} {[%emt 00:00:04]} Ra6 {[%clk 00:05:00]} {[%emt 00:00:09]} 52. Rxg7
{[%clk 00:07:05]} {[%emt 00:00:03]} Rxa7 {[%clk 00:04:58]} {[%emt 00:00:04]} 53.
Rxh7 {[%clk 00:07:06]} {[%emt 00:00:02]} Ra1+ {[%clk 00:04:58]} {[%emt
00:00:02]} 54. Kh2 {[%clk 00:07:04]} {[%emt 00:00:03]} Kg4 {[%clk 00:04:57]}
{[%emt 00:00:03]} 55. Rxf7 {[%clk 00:07:02]} {[%emt 00:00:04]} Ra2+ {[%clk
00:04:56]} {[%emt 00:00:03]} 56. Kg1 {[%clk 00:06:58]} {[%emt 00:00:07]} Kg3
{[%clk 00:04:54]} {[%emt 00:00:03]} 57. Rg7+ {[%clk 00:06:56]} {[%emt
00:00:04]} Kf3 {[%clk 00:04:54]} {[%emt 00:00:02]} 58. Rf7+ {[%clk 00:06:51]}
{[%emt 00:00:07]} Kg3 {[%clk 00:04:50]} {[%emt 00:00:06]} 59. Rg7+ {[%clk
00:06:47]} {[%emt 00:00:06]} Kh3 {[%clk 00:04:48]} {[%emt 00:00:05]} 60. Kf1
{[%clk 00:06:13]} {[%emt 00:00:35]} Ra1+ {[%clk 00:04:43]} {[%emt 00:00:08]} 61.
Ke2 {[%clk 00:06:13]} {[%emt 00:00:01]} Ra2+ {[%clk 00:04:43]} {[%emt
00:00:03]} 62. Kd3 {[%clk 00:06:10]} {[%emt 00:00:04]} Rg2 {[%clk 00:04:31]}
{[%emt 00:00:14]} 63. Rh7 {[%clk 00:06:04]} {[%emt 00:00:08]} Kg3 {[%clk
00:04:30]} {[%emt 00:00:04]} 64. Ke3 {[%clk 00:06:04]} {[%emt 00:00:02]} Rf2
{[%clk 00:04:24]} {[%emt 00:00:08]} 65. Rg7 {[%clk 00:06:04]} {[%emt 00:00:02]}
Kh3 {[%clk 00:04:07]} {[%emt 00:00:18]} 66. Kxf2 {[%clk 00:06:03]} {[%emt
00:00:02]} Kh4 {[%clk 00:04:08]} {[%emt 00:00:02]} 67. Kf3 {[%clk 00:06:04]}
{[%emt 00:00:02]} Kh5 {[%clk 00:04:08]} {[%emt 00:00:02]} 68. Kf4 {[%clk
00:06:05]} Kh6 {[%clk 00:04:08]} {[%emt 00:00:01]} 69. Rg1 {[%clk 00:06:06]}
{[%emt 00:00:01]} Kh7 {[%clk 00:04:09]} {[%emt 00:00:02]} 70. Kf5 {[%clk
00:06:07]} Kh6 {[%clk 00:04:08]} {[%emt 00:00:03]} 71. Rg2 {[%clk 00:06:08]}
{[%emt 00:00:01]} Kh7 {[%clk 00:04:09]} {[%emt 00:00:02]} 72. Kf6 {[%clk
00:06:09]} {[%emt 00:00:02]} Kh6 {[%emt 00:00:07]} 73. Rh2 {[%clk 00:06:06]}
1-0

[Event "St Kilda East and Caulfield Chess Club RAPID Term 3, 2025"]
[Site "st kilda east, Australia"]
[Date "2025.07.21"]
[Round "4.2"]
[White "Longe, Mathieu"]
[Black "Karboulahanos, Kris"]
[Result "0-1"]
[TimeControl "13 minutes per game plus 2 seconds from move 1"]
[WhiteElo "699"]
[BlackElo "1147"]

1. e4 {[%clk 00:13:00]} {[%emt 00:00:03]} e6 {[%clk 00:13:04]} {[%emt
00:00:01]} 2. d4 {[%clk 00:12:50]} {[%emt 00:00:12]} d5 {[%clk 00:13:03]}
{[%emt 00:00:02]} 3. exd5 {[%clk 00:12:44]} {[%emt 00:00:08]} exd5 {[%clk
00:13:04]} {[%emt 00:00:01]} 4. Nf3 {[%clk 00:12:38]} {[%emt 00:00:08]} Nf6
{[%clk 00:13:05]} {[%emt 00:00:01]} 5. Bg5 {[%clk 00:12:35]} {[%emt 00:00:05]}
Be7 {[%clk 00:13:06]} {[%emt 00:00:01]} 6. c4 {[%clk 00:12:25]} {[%emt
00:00:12]} c6 {[%clk 00:13:06]} {[%emt 00:00:01]} 7. Nc3 {[%clk 00:12:23]}
{[%emt 00:00:05]} Be6 {[%clk 00:13:03]} {[%emt 00:00:05]} 8. Bxf6 {[%clk
00:11:31]} {[%emt 00:00:53]} Bxf6 {[%clk 00:13:01]} {[%emt 00:00:04]} 9. cxd5
{[%clk 00:11:27]} {[%emt 00:00:06]} cxd5 {[%clk 00:13:00]} {[%emt 00:00:03]} 10.
Bb5+ {[%clk 00:11:25]} {[%emt 00:00:04]} Nc6 {[%clk 00:13:02]} 11. O-O {[%clk
00:11:20]} {[%emt 00:00:07]} O-O {[%clk 00:13:02]} {[%emt 00:00:02]} 12. a3
{[%clk 00:10:48]} {[%emt 00:00:34]} a6 {[%clk 00:12:44]} {[%emt 00:00:19]} 13.
Ba4 {[%clk 00:10:33]} {[%emt 00:00:17]} Qb6 {[%clk 00:12:42]} {[%emt 00:00:05]}
14. Bxc6 {[%clk 00:10:20]} {[%emt 00:00:14]} bxc6 {[%clk 00:12:23]} {[%emt
00:00:21]} 15. Rb1 {[%clk 00:10:15]} {[%emt 00:00:07]} Rab8 {[%clk 00:12:01]}
{[%emt 00:00:24]} 16. Na4 {[%clk 00:10:13]} {[%emt 00:00:05]} Qc7 {[%clk
00:11:57]} {[%emt 00:00:05]} 17. Nc5 {[%clk 00:10:09]} {[%emt 00:00:07]} Bf5
{[%clk 00:11:56]} {[%emt 00:00:03]} 18. Nxa6 {[%clk 00:09:46]} {[%emt
00:00:25]} Qb7 {[%clk 00:11:46]} {[%emt 00:00:12]} 19. Nxb8 {[%clk 00:09:30]}
{[%emt 00:00:18]} Bxb1 {[%clk 00:11:47]} {[%emt 00:00:01]} 20. Qxb1 {[%clk
00:09:27]} {[%emt 00:00:05]} Qxb8 {[%clk 00:11:47]} {[%emt 00:00:02]} 21. b4
{[%clk 00:09:08]} {[%emt 00:00:21]} Qa7 {[%clk 00:11:41]} {[%emt 00:00:08]} 22.
Qb3 {[%clk 00:08:58]} {[%emt 00:00:12]} Bxd4 {[%clk 00:11:39]} {[%emt
00:00:04]} 23. Nxd4 {[%clk 00:08:42]} {[%emt 00:00:18]} Qxd4 {[%clk 00:11:39]}
{[%emt 00:00:02]} 24. a4 {[%clk 00:08:33]} {[%emt 00:00:11]} Rb8 {[%clk
00:11:35]} {[%emt 00:00:05]} 25. Rb1 {[%clk 00:08:22]} {[%emt 00:00:14]} c5
{[%clk 00:11:27]} {[%emt 00:00:11]} 26. b5 {[%clk 00:08:18]} {[%emt 00:00:06]}
c4 {[%clk 00:11:15]} {[%emt 00:00:14]} 27. Qb4 {[%clk 00:07:36]} {[%emt
00:00:43]} Re8 {[%clk 00:10:54]} {[%emt 00:00:23]} 28. b6 {[%clk 00:07:11]}
{[%emt 00:00:28]} Re2 {[%clk 00:10:44]} {[%emt 00:00:12]} 29. Rf1 {[%clk
00:06:53]} {[%emt 00:00:20]} Rb2 {[%clk 00:10:31]} {[%emt 00:00:15]} 30. Qd6
{[%clk 00:06:44]} {[%emt 00:00:09]} g6 {[%clk 00:10:09]} {[%emt 00:00:25]} 31.
a5 {[%clk 00:06:42]} {[%emt 00:00:05]} c3 {[%clk 00:10:08]} {[%emt 00:00:03]}
32. g3 {[%clk 00:03:35]} {[%emt 00:03:09]} c2 {[%clk 00:09:44]} {[%emt
00:00:26]} 33. Rc1 {[%clk 00:02:59]} {[%emt 00:00:38]} Qd1+ {[%clk 00:09:15]}
{[%emt 00:00:31]} 34. Kg2 {[%clk 00:01:16]} {[%emt 00:01:44]} Qxc1 {[%clk
00:09:12]} {[%emt 00:00:05]} 35. Qxd5 {[%clk 00:01:04]} {[%emt 00:00:13]} Qd1
{[%clk 00:09:03]} {[%emt 00:00:12]} 36. Qa8+ {[%clk 00:01:01]} {[%emt
00:00:06]} Kg7 {[%clk 00:09:03]} 37. b7 {[%clk 00:00:58]} {[%emt 00:00:06]}
c1=Q {[%emt 00:00:18]} 38. b8=Q {[%clk 00:00:51]} {[%emt 00:00:08]} Qh1+ {[%clk
00:08:45]} {[%emt 00:00:03]} 39. Kh3 {[%clk 00:00:48]} {[%emt 00:00:06]} Qh6+
{[%clk 00:08:40]} {[%emt 00:00:06]} 40. Kg4 {[%clk 00:00:45]} {[%emt 00:00:06]}
f5# {[%clk 00:08:40]} {[%emt 00:00:02]} 0-1

[Event "St Kilda East and Caulfield Chess Club RAPID Term 3, 2025"]
[Site "st kilda east, Australia"]
[Date "2025.07.21"]
[Round "4.4"]
[White "Nash, Paul"]
[Black "Wang, Noah"]
[Result "1/2-1/2"]
[TimeControl "13 minutes per game plus 2 seconds from move 1"]
[WhiteElo "730"]
[BlackElo "936"]

1. e4 {[%clk 00:13:01]} c5 {[%clk 00:13:00]} {[%emt 00:00:02]} 2. c3 {[%clk
00:13:02]} {[%emt 00:00:01]} d5 {[%clk 00:13:00]} {[%emt 00:00:02]} 3. exd5
{[%clk 00:12:59]} {[%emt 00:00:04]} Qxd5 {[%clk 00:13:01]} {[%emt 00:00:02]} 4.
d4 {[%clk 00:12:59]} {[%emt 00:00:02]} Nc6 {[%clk 00:13:00]} {[%emt 00:00:03]}
5. Nf3 {[%clk 00:12:56]} {[%emt 00:00:05]} Bg4 {[%clk 00:12:58]} {[%emt
00:00:04]} 6. Be2 {[%clk 00:12:37]} {[%emt 00:00:21]} Nf6 {[%clk 00:12:19]}
{[%emt 00:00:41]} 7. O-O {[%clk 00:12:36]} {[%emt 00:00:02]} e6 {[%clk
00:12:16]} {[%emt 00:00:05]} 8. Na3 {[%clk 00:12:19]} {[%emt 00:00:19]} Be7
{[%clk 00:12:08]} {[%emt 00:00:10]} 9. c4 {[%clk 00:12:10]} {[%emt 00:00:11]}
Qd7 {[%clk 00:12:00]} {[%emt 00:00:10]} 10. dxc5 {[%clk 00:11:37]} {[%emt
00:00:35]} Qxd1 {[%clk 00:11:47]} {[%emt 00:00:15]} 11. Rxd1 {[%clk 00:11:38]}
{[%emt 00:00:01]} Bxc5 {[%clk 00:11:47]} {[%emt 00:00:02]} 12. Nb5 {[%clk
00:11:30]} {[%emt 00:00:09]} O-O {[%clk 00:11:30]} {[%emt 00:00:20]} 13. h3
{[%clk 00:11:23]} {[%emt 00:00:09]} Bh5 {[%clk 00:11:27]} {[%emt 00:00:04]} 14.
Bf4 {[%clk 00:11:02]} {[%emt 00:00:23]} e5 {[%clk 00:10:13]} {[%emt 00:01:16]}
15. g4 {[%clk 00:10:38]} {[%emt 00:00:27]} Bxg4 {[%clk 00:09:47]} {[%emt
00:00:28]} 16. hxg4 {[%clk 00:10:19]} {[%emt 00:00:20]} exf4 {[%clk 00:09:48]}
{[%emt 00:00:02]} 17. Ng5 {[%clk 00:09:20]} {[%emt 00:01:00]} a6 {[%clk
00:09:30]} {[%emt 00:00:20]} 18. Nc7 {[%clk 00:09:05]} {[%emt 00:00:17]} Rac8
{[%clk 00:09:19]} {[%emt 00:00:13]} 19. Nd5 {[%clk 00:08:49]} {[%emt 00:00:19]}
Nxd5 {[%clk 00:09:13]} {[%emt 00:00:08]} 20. Rxd5 {[%clk 00:08:37]} {[%emt
00:00:14]} Nd4 {[%clk 00:09:04]} {[%emt 00:00:12]} 21. Kf1 {[%clk 00:08:08]}
{[%emt 00:00:29]} Rfe8 {[%clk 00:08:18]} {[%emt 00:00:50]} 22. Bd3 {[%clk
00:07:51]} {[%emt 00:00:19]} Ba7 {[%clk 00:08:11]} {[%emt 00:00:09]} 23. Bxh7+
{[%clk 00:07:37]} {[%emt 00:00:16]} Kh8 {[%clk 00:08:06]} {[%emt 00:00:07]} 24.
Bd3 {[%clk 00:07:08]} {[%emt 00:00:31]} Re7 {[%clk 00:07:12]} {[%emt 00:00:56]}
25. Kg2 {[%clk 00:06:55]} {[%emt 00:00:16]} Rce8 {[%clk 00:06:50]} {[%emt
00:00:24]} 26. Rh1+ {[%clk 00:06:54]} {[%emt 00:00:03]} Kg8 {[%clk 00:06:44]}
{[%emt 00:00:08]} 27. Bh7+ {[%clk 00:06:47]} {[%emt 00:00:07]} Kf8 {[%clk
00:06:46]} 28. Bd3 {[%clk 00:06:17]} {[%emt 00:00:34]} Kg8 {[%clk 00:06:39]}
{[%emt 00:00:09]} 29. Bh7+ {[%clk 00:06:16]} {[%emt 00:00:03]} Kf8 {[%clk
00:06:40]} {[%emt 00:00:01]} 30. Bd3 {[%clk 00:06:00]} {[%emt 00:00:02]} Kg8
{[%clk 00:06:21]} {[%emt 00:00:36]} 31. Bh7+ {[%clk 00:05:30]} {[%emt
00:00:27]} Kf8 {[%emt 00:00:45]} 1/2-1/2